bitfinex/quotes_BTCUSD_20260311
["timestamp","ask_amount","ask_price","bid_price","bid_amount"]
[1773224524150,0.02340309,69499.0,69483.0,0.0001554]
[1773224524566,0.02340309,69499.0,69483.0,0.07211499]
[1773224524970,0.02340309,69499.0,69491.0,7.5e-05]
[1773224525396,0.02339992,69497.0,69491.0,7.5e-05]
[1773224526607,0.07194451,69498.0,69491.0,7.5e-05]
[1773224526833,0.001,69497.0,69491.0,7.5e-05]
[1773224527310,0.07194451,69498.0,69491.0,7.5e-05]
[1773224527536,0.07194451,69500.0,69491.0,7.5e-05]
[1773224527781,0.00022001,69499.0,69491.0,7.5e-05]
[1773224528181,0.07215917,69504.0,69491.0,7.5e-05]
[1773224528383,0.07331917,69504.0,69491.0,7.5e-05]
[1773224528584,0.07331917,69504.0,69488.0,0.00116]
[1773224528785,0.02339096,69503.0,69486.0,0.00116]
[1773224529169,0.02339096,69503.0,69491.0,0.001]
[1773224529364,0.02339096,69503.0,69483.0,0.0001554]
[1773224529586,0.02339096,69503.0,69484.0,0.00116]
[1773224529768,0.02339096,69499.0,69478.0,7.5e-05]
[1773224529963,0.02339096,69497.0,69478.0,7.5e-05]
[1773224530165,0.02339096,69497.0,69478.0,0.07204002]
[1773224531039,0.02455283,69496.0,69478.0,0.07204002]
[1773224531244,0.00116,69495.0,69478.0,0.07204002]
[1773224531659,0.02455283,69495.0,69478.0,0.07204002]
[1773224531854,0.07194865,69494.0,69478.0,0.07204002]
[1773224532709,7.5e-05,69496.0,69478.0,0.07204002]
[1773224533548,7.5e-05,69487.0,69478.0,0.07204002]
[1773224533881,7.5e-05,69487.0,69478.0,0.07304002]
[1773224534695,7.5e-05,69491.0,69478.0,0.07304002]
[1773224535228,1e-08,69496.0,69478.0,0.07304002]
[1773224535374,1e-08,69496.0,69478.0,0.07204002]
[1773224535980,1e-08,69496.0,69480.0,0.11932892]
[1773224536178,1e-08,69496.0,69481.0,0.05172489]
[1773224536420,1e-08,69496.0,69482.0,0.00116]
[1773224536727,1e-08,69499.0,69482.0,0.00116]
[1773224537931,1e-08,69499.0,69483.0,0.07196004]
[1773224539541,1e-08,69499.0,69483.0,0.07296004]
[1773224540124,1e-08,69499.0,69483.0,0.07196004]
[1773224540522,1e-08,69499.0,69483.0,0.07296004]
[1773224541121,1e-08,69499.0,69483.0,0.07396004]
[1773224541327,0.02337971,69498.0,69484.0,0.00116]
[1773224542130,0.02337971,69498.0,69485.0,0.07195797]
[1773224543850,0.02337971,69498.0,69491.0,7.5e-05]
[1773224544049,0.02337971,69498.0,69492.0,0.00116]
[1773224544276,0.02337971,69498.0,69493.0,0.07194969]
[1773224544471,0.02337971,69498.0,69492.0,0.00116]
[1773224544643,0.02339035,69497.0,69493.0,0.00116]
[1773224545358,0.02339035,69497.0,69490.0,0.07311187]
[1773224545976,0.02339035,69497.0,69491.0,0.07195146]
[1773224546761,1e-08,69499.0,69491.0,0.07195146]
[1773224552310,7.5e-05,69496.0,69491.0,0.07195146]
[1773224554157,0.00029501,69504.0,69491.0,0.07195146]
[1773224554359,1e-08,69510.0,69491.0,0.07201056]
[1773224554665,0.01268098,69510.0,69491.0,0.07201056]
[1773224555040,0.01268098,69510.0,69491.0,0.24441956]
[1773224555366,0.01268098,69510.0,69492.0,0.172409]
[1773224555720,0.01268098,69510.0,69493.0,0.07194969]
[1773224556678,0.01284039,69509.0,69493.0,0.07194969]
[1773224557071,1e-08,69510.0,69494.0,0.00116]
[1773224558132,1e-08,69510.0,69495.0,0.07194762]
[1773224558835,1e-08,69510.0,69504.0,7.5e-05]
[1773224558997,1e-08,69510.0,69505.0,0.00116]
[1773224559574,1e-08,69511.0,69505.0,0.00116]
[1773224559781,0.00029501,69517.0,69505.0,0.00116]
[1773224559973,0.0130604,69518.0,69506.0,0.07193623]
[1773224560414,0.00022001,69518.0,69506.0,0.07193623]
[1773224560918,1e-08,69519.0,69506.0,0.07193623]
[1773224562169,1e-08,69519.0,69506.0,0.18677233]
[1773224562367,1e-08,69519.0,69506.0,0.07193623]
[1773224567597,7.5e-05,69522.0,69506.0,0.07193623]
[1773224567904,0.00022001,69519.0,69506.0,0.18677233]
[1773224568232,0.00022001,69519.0,69509.0,7.5e-05]
[1773224569425,0.00022001,69519.0,69506.0,0.07293623]
[1773224569426,0.01284039,69518.0,69506.0,0.07293623]
[1773224569625,0.01284039,69518.0,69505.0,0.07193623]
[1773224569626,0.01284039,69518.0,69505.0,0.07193727]
[1773224569864,0.01284039,69518.0,69506.0,0.00116]
[1773224572268,0.07192485,69517.0,69507.0,0.0719352]
[1773224572582,0.01284039,69516.0,69507.0,0.0719352]
[1773224572937,0.07192458,69518.0,69507.0,0.0719352]
[1773224572938,0.00642019,69518.0,69507.0,0.0719352]
[1773224573177,0.00010476,69519.0,69508.0,0.00357979]
[1773224573617,0.00010476,69519.0,69509.0,0.03974367]
[1773224574190,0.00469301,69521.0,69507.0,0.0719352]
[1773224575699,0.00022001,69519.0,69507.0,0.0719352]
[1773224576510,0.00469301,69521.0,69507.0,0.0719352]
[1773224576716,7.5e-05,69513.0,69508.0,0.00357979]
[1773224576938,7.5e-05,69517.0,69508.0,0.00357979]
[1773224578716,7.5e-05,69517.0,69510.0,0.04097848]
[1773224579466,7.5e-05,69517.0,69510.0,0.04037681]
[1773224580840,7.5e-05,69517.0,69512.0,0.04097848]
[1773224581173,7.5e-05,69517.0,69514.0,0.04097848]
[1773224582154,0.000224,69522.0,69514.0,0.04097848]
[1773224582353,0.00032602,69522.0,69514.0,0.04097848]
[1773224582774,0.00032602,69522.0,69514.0,0.07192795]
[1773224583755,0.00032602,69522.0,69514.0,0.11290642]
[1773224585466,0.00032602,69522.0,69514.0,0.07192795]
[1773224589539,0.00032602,69522.0,69514.0,0.07212795]
[1773224589970,0.00054603,69522.0,69514.0,0.07212795]
[1773224593355,0.07246598,69522.0,69514.0,0.07212795]
[1773224593563,0.07246598,69522.0,69509.0,0.18704675]
[1773224593811,0.07246598,69522.0,69508.0,0.04242663]
[1773224594161,0.07246598,69522.0,69509.0,0.07309309]
[1773224595004,0.07246598,69522.0,69509.0,0.07193309]
[1773224595210,0.07362598,69522.0,69510.0,0.04098315]
[1773224596163,0.07246598,69522.0,69511.0,0.07193106]
[1773224596669,0.07246598,69522.0,69511.0,0.11291212]
[1773224597299,0.07246598,69522.0,69512.0,0.04098106]
[1773224598271,0.07246598,69522.0,69511.0,0.07193106]
[1773224599163,7.5e-05,69513.0,69511.0,0.07193106]
[1773224599308,7.5e-05,69513.0,69512.0,0.04097951]
[1773224599527,7.5e-05,69513.0,69511.0,0.07193106]
[1773224600342,7.5e-05,69513.0,69509.0,0.07309106]
[1773224602300,7.5e-05,69513.0,69510.0,0.00116]
[1773224602973,7.5e-05,69513.0,69506.0,0.07213622]
[1773224603176,7.5e-05,69513.0,69506.0,0.0002]
[1773224603550,7.5e-05,69513.0,69507.0,0.00116]
[1773224606130,7.5e-05,69513.0,69506.0,0.07213545]
[1773224606354,7.5e-05,69513.0,69507.0,0.00116]
[1773224606633,7.5e-05,69513.0,69506.0,0.0002]
[1773224606990,7.5e-05,69513.0,69507.0,0.00116]
[1773224607201,7.5e-05,69513.0,69506.0,0.0002]
[1773224608524,7.5e-05,69513.0,69507.0,0.00116]
[1773224609392,0.00029501,69513.0,69507.0,0.00116]
[1773224610090,0.00029501,69513.0,69508.0,0.04098413]
[1773224610291,7.5e-05,69517.0,69508.0,0.04098413]
[1773224611306,7.5e-05,69517.0,69510.0,0.04098158]
[1773224611982,0.01795126,69521.0,69510.0,0.04098158]
[1773224613115,0.01795126,69521.0,69511.0,0.00116]
[1773224613379,0.05769858,69521.0,69509.0,7.5e-05]
[1773224613601,0.05769858,69521.0,69511.0,0.00116]
[1773224613752,0.01795126,69521.0,69511.0,0.00116]
[1773224615395,0.01895126,69521.0,69511.0,0.00116]
[1773224616128,0.01895126,69521.0,69506.0,0.00136]
[1773224616129,0.00116,69520.0,69506.0,0.00136]
[1773224616545,0.00116,69520.0,69506.0,0.0002]
[1773224616928,0.00116,69520.0,69506.0,0.07213622]
[1773224617558,0.07192278,69519.0,69506.0,0.0002]
[1773224617742,0.07192278,69519.0,69513.0,7.5e-05]
[1773224618393,0.07192278,69519.0,69510.0,0.04098383]
[1773224618598,0.07192202,69520.0,69510.0,0.04098383]
[1773224618756,0.001,69519.0,69510.0,0.04098383]
[1773224618956,0.07192202,69520.0,69510.0,0.04098383]
[1773224619382,0.001,69519.0,69510.0,0.04098383]
[1773224619611,0.07192331,69519.0,69511.0,0.07693106]
[1773224619952,0.07292331,69519.0,69511.0,0.07693106]
[1773224621341,0.07192331,69519.0,69511.0,0.07693106]
[1773224621807,0.07192331,69519.0,69511.0,0.07809106]
[1773224622013,0.07192331,69519.0,69511.0,0.00116]
[1773224622468,0.07192331,69519.0,69509.0,0.00116]
[1773224623354,0.07192331,69519.0,69509.0,0.00616]
[1773224626688,0.07192331,69519.0,69510.0,0.07193209]
[1773224626894,0.07192331,69519.0,69511.0,0.0002]
[1773224627711,7.5e-05,69517.0,69511.0,0.0002]
[1773224632424,7.5e-05,69517.0,69509.0,0.00116]
[1773224632629,7.5e-05,69517.0,69508.0,0.00116]
[1773224633720,7.5e-05,69517.0,69506.0,0.0002]
[1773224633870,7.5e-05,69517.0,69506.0,0.07213593]
[1773224634071,7.5e-05,69513.0,69506.0,0.0002]
[1773224646727,7.5e-05,69513.0,69502.0,0.0002]
[1773224646926,7.5e-05,69513.0,69497.0,0.0002]
[1773224646927,0.03976133,69512.0,69497.0,0.0002]
[1773224647242,0.03976133,69506.0,69490.0,0.001347]
[1773224647543,0.00116,69505.0,69491.0,0.001435]
[1773224647702,0.00116,69504.0,69491.0,0.000275]
[1773224648541,0.07193934,69503.0,69491.0,0.000275]
[1773224648956,0.03976133,69502.0,69491.0,0.000275]
[1773224650156,0.04076133,69502.0,69491.0,0.000275]
[1773224650748,0.07194141,69501.0,69491.0,0.000275]
[1773224651952,0.07294141,69501.0,69491.0,0.000275]
[1773224652274,0.07294141,69501.0,69487.0,1e-08]
[1773224652275,7.5e-05,69500.0,69487.0,1e-08]
[1773224652848,0.07194658,69496.0,69487.0,1e-08]
[1773224653063,0.00116,69495.0,69487.0,1e-08]
[1773224654611,0.05064537,69499.0,69487.0,1e-08]
[1773224654812,0.07201434,69504.0,69489.0,0.03976133]
[1773224655060,0.07201434,69504.0,69490.0,0.005]
[1773224655061,0.07317434,69504.0,69490.0,0.005]
[1773224655226,0.00116,69503.0,69490.0,0.005]
[1773224655418,0.001,69495.0,69490.0,0.005]
[1773224655770,0.001,69496.0,69490.0,0.005]
[1773224656277,0.00116,69503.0,69490.0,0.005]
[1773224657046,0.07194037,69502.0,69490.0,0.07195176]
[1773224657247,0.07194037,69502.0,69491.0,0.03572988]
[1773224659758,0.07194037,69502.0,69492.0,0.07195072]
[1773224660005,0.07194037,69502.0,69493.0,0.03590645]
[1773224660210,0.000125,69507.0,69493.0,0.03590645]
[1773224660211,0.07206042,69507.0,69493.0,0.03590645]
[1773224660359,0.000125,69507.0,69498.0,0.03590645]
[1773224660565,7.5e-05,69509.0,69498.0,0.03590645]
[1773224660893,0.07193149,69511.0,69500.0,0.04098857]
[1773224661091,0.07193022,69512.0,69500.0,0.04098857]
[1773224662224,0.07222431,69513.0,69502.0,0.04095107]
[1773224663403,0.07222431,69513.0,69502.0,0.04195107]
[1773224663572,0.07222431,69513.0,69504.0,7.5e-05]
[1773224663975,0.00022001,69509.0,69504.0,7.5e-05]
[1773224664393,0.07215395,69509.0,69504.0,1e-08]
[1773224664598,0.07215395,69509.0,69500.0,7.5e-05]
[1773224665020,0.00116,69508.0,69500.0,7.5e-05]
[1773224665835,0.00116,69508.0,69500.0,0.07201707]
[1773224666066,0.00116,69508.0,69501.0,0.04098675]
[1773224666421,0.00216,69508.0,69502.0,0.07194037]
[1773224666863,0.002,69508.0,69502.0,0.07194037]
[1773224667177,0.07222441,69513.0,69502.0,0.07194037]
[1773224667178,0.07193089,69512.0,69503.0,0.04098883]
[1773224668368,0.0719352,69507.0,69500.0,0.001235]
[1773224668583,0.0719352,69507.0,69500.0,7.5e-05]
[1773224668782,0.0719352,69507.0,69496.0,0.0720215]
[1773224668783,0.0730952,69507.0,69496.0,0.0720215]
[1773224668981,0.0730952,69507.0,69496.0,7.5e-05]
[1773224670031,0.0730952,69507.0,69496.0,0.0720213]
[1773224670482,0.0730952,69507.0,69496.0,0.04106128]
[1773224671726,0.0740952,69507.0,69496.0,0.04106128]
[1773224671866,0.0730952,69507.0,69496.0,0.0414347]
[1773224672063,0.0730952,69507.0,69496.0,0.00044842]
[1773224673017,7.5e-05,69504.0,69496.0,0.00044842]
[1773224673537,7.5e-05,69504.0,69492.0,0.0002]
[1773224673745,7.5e-05,69504.0,69492.0,0.0002591]
[1773224675014,0.001075,69504.0,69492.0,0.0002591]
[1773224675393,7.5e-05,69504.0,69492.0,0.0002591]
[1773224677726,0.00029501,69504.0,69492.0,0.0002591]
[1773224677968,0.00129501,69504.0,69492.0,0.0002591]
[1773224678524,0.00229501,69504.0,69492.0,0.0002591]
[1773224678927,0.00029501,69504.0,69492.0,0.0002591]
[1773224679154,0.07193934,69503.0,69492.0,0.0002591]
[1773224679725,7.5e-05,69500.0,69492.0,0.0002591]
[1773224679923,0.00116,69499.0,69492.0,0.0002591]
[1773224681129,0.07194451,69498.0,69492.0,0.0002591]
[1773224682173,0.07294451,69498.0,69492.0,0.0002591]
[1773224682621,0.07394451,69498.0,69492.0,0.0002591]
[1773224682776,0.07294451,69498.0,69492.0,0.0002591]
[1773224683305,0.07294451,69498.0,69491.0,7.5e-05]
[1773224683480,0.07194451,69498.0,69491.0,7.5e-05]
[1773224683656,0.07294451,69498.0,69491.0,7.5e-05]
[1773224684097,0.07294451,69498.0,69487.0,0.000275]
[1773224684298,0.07194451,69498.0,69487.0,0.000275]
[1773224684673,0.07294451,69498.0,69487.0,0.000275]
[1773224685071,0.07194451,69498.0,69483.0,0.0002]
[1773224685513,0.07194451,69498.0,69485.0,0.000487]
[1773224685688,0.07294451,69498.0,69485.0,0.000487]
[1773224685889,0.07194451,69498.0,69485.0,0.000487]
[1773224686301,7.5e-05,69496.0,69485.0,0.000487]
[1773224687095,7.5e-05,69491.0,69485.0,0.000487]
[1773224687297,0.00116,69490.0,69485.0,0.000487]
[1773224687611,0.07195383,69489.0,69485.0,0.000487]
[1773224690463,0.07295383,69489.0,69485.0,0.000487]
[1773224691134,0.07195383,69489.0,69485.0,0.000487]
[1773224691334,0.07295383,69489.0,69485.0,0.000487]
[1773224691533,0.07395383,69489.0,69485.0,0.000487]
[1773224691736,0.07295383,69489.0,69482.0,1e-08]
[1773224691958,0.07295383,69489.0,69480.0,1e-08]
[1773224692181,0.07395383,69489.0,69480.0,1e-08]
[1773224692582,0.07295383,69489.0,69480.0,1e-08]
[1773224692984,0.07395383,69489.0,69480.0,1e-08]
[1773224693413,0.07295383,69489.0,69480.0,1e-08]
[1773224693612,7.5e-05,69487.0,69480.0,1e-08]
[1773224693815,7.5e-05,69487.0,69476.0,0.0409982]
[1773224694039,0.00015553,69487.0,69476.0,0.0409982]
[1773224694242,0.07193994,69489.0,69476.0,0.0409982]
[1773224694454,0.0002045,69500.0,69476.0,0.07204679]
[1773224694655,0.0002045,69500.0,69482.0,0.0409982]
[1773224694656,0.07194762,69495.0,69482.0,0.0409982]
[1773224694870,0.07194762,69495.0,69481.0,0.08676733]
[1773224694871,0.00116,69497.0,69486.0,0.0409982]
[1773224695100,0.07215156,69511.0,69486.0,0.0409982]
[1773224695101,0.07206551,69507.0,69486.0,0.0409982]
[1773224695305,0.00116,69506.0,69491.0,0.0409982]
[1773224695460,0.0719352,69510.0,69491.0,0.0409982]
[1773224695461,0.00022001,69520.0,69491.0,0.0409982]
[1773224695710,1.881e-05,69517.0,69493.0,0.17222214]
[1773224695876,1.881e-05,69517.0,69495.0,0.0409982]
[1773224696302,0.00022001,69510.0,69495.0,0.0409982]
[1773224696691,0.00022001,69520.0,69494.0,0.00116]
[1773224696692,0.00138001,69533.0,69502.0,0.04098365]
[1773224696885,0.07198665,69530.0,69503.0,0.04098365]
[1773224697109,0.07198665,69530.0,69505.0,0.04098365]
[1773224697519,0.07198665,69530.0,69500.0,0.17245214]
[1773224697520,0.07198665,69530.0,69507.0,0.03547559]
[1773224697742,0.00022001,69531.0,69508.0,0.07193416]
[1773224698025,0.07190004,69541.0,69508.0,0.07193416]
[1773224698026,0.07196882,69548.0,69528.0,0.03407269]
[1773224698230,0.00011202,69531.0,69528.0,0.03407269]
[1773224698426,0.00116,69542.0,69528.0,0.03407269]
[1773224699090,7.5e-05,69548.0,69531.0,0.02357016]
[1773224699314,7.5e-05,69548.0,69531.0,0.02394379]
[1773224699648,0.00116,69547.0,69531.0,0.02394379]
[1773224700009,0.00116,69547.0,69533.0,0.02357016]
[1773224700213,0.07305433,69547.0,69533.0,0.02357016]
[1773224700412,0.11924177,69541.0,69528.0,0.001]
[1773224700611,0.11924177,69541.0,69525.0,0.07191579]
[1773224700612,0.00037333,69541.0,69525.0,0.07191579]
[1773224700792,0.00037333,69541.0,69531.0,0.002]
[1773224701182,0.00116,69540.0,69533.0,0.001]
[1773224701860,0.00116,69540.0,69441.0,0.60740157]
[1773224701861,0.11924177,69536.0,69510.0,0.0002045]
[1773224702047,0.11924177,69536.0,69507.0,0.07193436]
[1773224702048,0.07190726,69534.0,69505.0,0.07186227]
[1773224702250,0.718293,69533.0,69505.0,0.07186227]
[1773224702452,0.11924177,69520.0,69500.0,0.00023]
[1773224702649,0.11924177,69520.0,69488.0,0.0013645]
[1773224702650,0.11916677,69510.0,69489.0,0.07195383]
[1773224702868,0.00097952,69509.0,69489.0,0.07195383]
[1773224703195,0.00116,69508.0,69489.0,0.08373891]
[1773224703378,0.00116,69507.0,69489.0,0.08373891]
[1773224703537,0.001085,69507.0,69489.0,0.08373891]
[1773224703889,0.0014581,69507.0,69489.0,0.08373891]
[1773224704026,0.07193623,69506.0,69489.0,0.08373891]
[1773224704228,0.07193623,69506.0,69489.0,0.07195383]
[1773224704450,0.07193623,69506.0,69490.0,0.01178508]
[1773224704676,0.07186123,69506.0,69490.0,0.01178508]
[1773224704882,0.07186123,69506.0,69501.0,0.0090069]
[1773224705046,0.0003731,69507.0,69501.0,0.0090069]
[1773224705251,0.00068,69506.0,69501.0,0.02079198]
[1773224705435,0.000605,69506.0,69501.0,0.02079198]
[1773224706140,0.07193727,69505.0,69501.0,0.0090069]
[1773224706351,0.07186227,69505.0,69501.0,0.0090069]
[1773224706905,0.00116,69504.0,69501.0,0.0090069]
[1773224707201,0.00116,69503.0,69501.0,0.0090069]
[1773224707901,0.001085,69503.0,69501.0,0.0090069]
[1773224709044,0.00101,69503.0,69501.0,0.0090069]
[1773224709546,0.00116,69502.0,69501.0,0.0092069]
[1773224709728,0.005,69501.0,69489.0,0.07195383]
[1773224709929,0.00116,69502.0,69494.0,0.0002]
[1773224710312,0.00116,69502.0,69500.0,7.5e-05]
[1773224710799,0.00116,69502.0,69501.0,0.001]
[1773224710999,0.00061841,69502.0,69500.0,7.5e-05]
[1773224711345,0.00054341,69502.0,69500.0,7.5e-05]
[1773224713532,0.00054341,69502.0,69500.0,0.001075]
[1773224713716,0.00054341,69502.0,69500.0,7.5e-05]
[1773224714124,0.00054341,69502.0,69500.0,0.001075]
[1773224714327,0.0003629,69502.0,69500.0,7.5e-05]
[1773224714750,0.0003629,69502.0,69500.0,0.001075]
[1773224715067,0.0003629,69502.0,69500.0,7.5e-05]
[1773224716634,0.0003629,69502.0,69500.0,0.000275]
[1773224717104,0.0003629,69502.0,69500.0,0.001275]
[1773224717305,0.0003629,69502.0,69500.0,0.000275]
[1773224717523,0.0003629,69502.0,69500.0,0.001275]
[1773224717875,0.0003629,69502.0,69500.0,0.000275]
[1773224718074,0.0003629,69502.0,69500.0,0.001275]
[1773224718296,0.0003629,69502.0,69500.0,0.000275]
[1773224719516,0.0003629,69502.0,69501.0,0.07194141]
[1773224719781,0.0003629,69502.0,69500.0,0.07321741]
[1773224719983,0.0003731,69507.0,69500.0,0.07321741]
[1773224720182,0.005,69524.0,69500.0,0.07321741]
[1773224720396,0.005,69522.0,69500.0,0.07259051]
[1773224720588,0.00116,69521.0,69500.0,0.07259051]
[1773224720875,0.00616,69521.0,69500.0,0.0006481]
[1773224721080,0.00616,69521.0,69500.0,0.07259042]
[1773224721956,0.005,69520.0,69500.0,0.07259042]
[1773224722488,0.005,69518.0,69496.0,0.07202075]
[1773224722760,0.0053731,69518.0,69496.0,0.07202075]
[1773224723711,0.0053731,69518.0,69500.0,0.0002]
[1773224723910,0.00616,69517.0,69500.0,0.0002]
[1773224724426,0.005,69515.0,69500.0,0.0002]
[1773224725169,0.005,69513.0,69500.0,0.0002]
[1773224725577,0.00116,69512.0,69500.0,0.0002]
[1773224725831,0.00116,69511.0,69500.0,0.0002]
[1773224726009,0.07692588,69517.0,69500.0,0.0002]
[1773224726219,0.00116,69516.0,69500.0,0.0002]
[1773224726427,0.00116,69515.0,69500.0,0.0002]
[1773224726726,0.07692588,69517.0,69500.0,0.0002]
[1773224726727,0.00116,69514.0,69500.0,0.0002]
[1773224726922,0.07692588,69517.0,69500.0,0.0002]
[1773224727122,0.00116,69514.0,69500.0,0.0002]
[1773224727326,0.07229898,69518.0,69500.0,0.0012]
[1773224727327,0.0003731,69518.0,69500.0,0.0012]
[1773224727570,0.0015331,69518.0,69500.0,0.0012]
[1773224727715,0.00116,69517.0,69500.0,0.00236]
[1773224727903,0.00116,69517.0,69500.0,0.0027331]
[1773224728303,7.5e-05,69509.0,69500.0,0.0027331]
[1773224728506,0.07316033,69517.0,69501.0,0.07194141]
[1773224729107,0.07816033,69517.0,69501.0,0.07194141]
[1773224730007,0.07816033,69517.0,69501.0,0.07294141]
[1773224730203,0.07816033,69517.0,69501.0,0.07194141]
[1773224730503,0.07816033,69517.0,69501.0,0.07294141]
[1773224730711,0.07816033,69517.0,69501.0,0.07394141]
[1773224730909,0.07838034,69517.0,69501.0,0.07194141]
[1773224731210,0.07838034,69517.0,69501.0,0.07294141]
[1773224731606,0.07838034,69517.0,69501.0,0.07194141]
[1773224732185,0.005,69516.0,69501.0,0.07194141]
[1773224732484,0.005,69516.0,69501.0,0.07294141]
[1773224732632,0.005,69516.0,69501.0,0.07194141]
[1773224732826,0.07692692,69515.0,69501.0,0.07194141]
[1773224733437,0.07692692,69515.0,69501.0,0.07394141]
[1773224733864,0.005,69515.0,69501.0,0.07194141]
[1773224734839,0.07692727,69515.0,69501.0,0.07194141]
[1773224735597,0.07692753,69515.0,69501.0,0.07194141]
[1773224735886,0.07338056,69517.0,69501.0,0.07194141]
[1773224736084,0.07338019,69517.0,69501.0,0.07194141]
[1773224736247,0.07338019,69517.0,69501.0,0.07294141]
[1773224736654,0.07338019,69517.0,69501.0,0.07194141]
[1773224736854,0.07338019,69517.0,69501.0,0.07294141]
[1773224737059,0.005,69516.0,69501.0,0.07394141]
[1773224737257,0.005,69516.0,69501.0,0.07294141]
[1773224737889,0.005,69516.0,69504.0,7.5e-05]
[1773224738065,0.005,69516.0,69501.0,0.0002]
[1773224738243,0.005,69516.0,69501.0,0.0012]
[1773224738637,0.005,69516.0,69500.0,0.0005731]
[1773224738876,0.005,69514.0,69500.0,0.0005731]
[1773224739243,0.005,69503.0,69500.0,0.0005731]
[1773224739422,0.00116,69502.0,69500.0,0.0005731]
[1773224739629,0.00116,69502.0,69500.0,0.07251541]
[1773224740458,0.00116,69502.0,69500.0,0.07351541]
[1773224741221,0.00116,69502.0,69500.0,0.07451541]
[1773224741846,0.00116,69502.0,69500.0,0.07351541]
[1773224742339,0.00116,69502.0,69500.0,0.07251541]
[1773224742658,0.00116,69502.0,69500.0,0.07351541]
[1773224742814,0.00116,69502.0,69500.0,0.07251541]
[1773224743835,0.00116,69507.0,69500.0,0.07251541]
[1773224745075,0.00116,69515.0,69500.0,0.07251541]
[1773224745836,0.00116,69515.0,69500.0,0.07359041]
[1773224746069,0.00029501,69517.0,69500.0,0.07259041]
[1773224746271,7.5e-05,69509.0,69500.0,0.07359041]
[1773224746435,7.5e-05,69509.0,69500.0,0.07459041]
[1773224746845,7.5e-05,69509.0,69500.0,0.07359041]
[1773224747249,0.005,69508.0,69500.0,0.07259041]
[1773224747998,0.005,69508.0,69500.0,0.07359041]
[1773224748429,0.00116,69507.0,69500.0,0.07359041]
[1773224749197,0.00116,69507.0,69500.0,0.07459041]
[1773224749361,0.00116,69507.0,69500.0,0.07259041]
[1773224749767,0.00116,69507.0,69500.0,0.07359041]
[1773224749990,0.00116,69507.0,69496.0,7.5e-05]
[1773224749991,0.005,69506.0,69496.0,7.5e-05]
[1773224750306,0.0053731,69506.0,69496.0,7.5e-05]
[1773224750858,0.0053731,69506.0,69500.0,0.001]
[1773224751179,0.0053731,69506.0,69500.0,0.0012]
[1773224751399,0.005,69504.0,69488.0,0.07243383]
[1773224752984,0.005,69499.0,69488.0,0.07243383]
[1773224753185,0.0059795,69498.0,69488.0,0.07243383]
[1773224754029,7.5e-05,69500.0,69488.0,0.07243383]
[1773224754232,0.00116,69499.0,69488.0,0.07243383]
[1773224754697,0.07230933,69506.0,69488.0,0.07243383]
[1773224754918,0.00116,69501.0,69488.0,0.07243383]
[1773224755328,0.00116,69501.0,69488.0,0.07343383]
[1773224755612,0.00116,69501.0,69488.0,0.07243383]
[1773224755964,0.00116,69501.0,69488.0,0.07443383]
[1773224756186,0.00116,69501.0,69488.0,0.07343383]
[1773224756611,0.00116,69501.0,69488.0,0.07443383]
[1773224756817,0.00116,69501.0,69488.0,0.07343383]
[1773224757112,0.00116,69501.0,69488.0,0.07443383]
[1773224757474,0.00116,69501.0,69488.0,0.07463383]
[1773224758194,0.00116,69501.0,69488.0,0.07363383]
[1773224758718,0.00116,69501.0,69488.0,0.07463383]
[1773224758917,0.00116,69501.0,69488.0,0.07263383]
[1773224759322,0.00116,69501.0,69488.0,0.07363383]
[1773224759823,0.00116,69501.0,69488.0,0.07463383]
[1773224761077,0.00116,69501.0,69488.0,0.07363383]
[1773224761281,7.5e-05,69504.0,69488.0,0.07363383]
[1773224761784,7.5e-05,69504.0,69488.0,0.07463383]
[1773224761991,7.5e-05,69504.0,69488.0,0.07363383]
[1773224762393,0.001235,69504.0,69488.0,0.07463383]
[1773224762588,0.001235,69504.0,69488.0,0.07363383]
[1773224762789,0.001235,69504.0,69488.0,0.07263383]
[1773224763141,0.001235,69504.0,69488.0,0.07463383]
[1773224763303,0.001235,69504.0,69488.0,0.07363383]
[1773224764191,0.001235,69504.0,69488.0,0.07263383]
[1773224764504,0.001235,69504.0,69488.0,0.07363383]
[1773224764726,0.001235,69504.0,69488.0,0.07463383]
[1773224764926,0.001235,69504.0,69488.0,0.07263383]
[1773224765338,0.001235,69504.0,69496.0,7.5e-05]
[1773224767183,0.005,69503.0,69491.0,7.5e-05]
[1773224768116,0.005,69503.0,69487.0,0.000275]
[1773224768321,0.005,69503.0,69487.0,0.07195559]
[1773224768533,0.005,69503.0,69481.0,0.0002]
[1773224768534,0.005,69501.0,69481.0,0.0002]
[1773224770700,0.005,69499.0,69481.0,0.0002]
[1773224770920,0.005,69499.0,69478.0,0.000275]
[1773224771144,0.005,69499.0,69477.0,0.13037034]
[1773224771433,0.005,69499.0,69465.0,0.07225737]
[1773224771434,0.00481951,69489.0,69481.0,0.0002]
[1773224771593,0.00490975,69487.0,69471.0,0.07217234]
[1773224771796,0.00490975,69485.0,69471.0,0.07217234]
[1773224771986,0.00490975,69483.0,69471.0,0.07217234]
[1773224772187,7.5e-05,69491.0,69471.0,0.07217234]
[1773224772188,0.00490975,69481.0,69471.0,0.07217234]
[1773224772403,0.00116,69480.0,69471.0,0.07217234]
[1773224772887,0.00116,69480.0,69471.0,0.00031202]
[1773224773390,0.00116,69479.0,69471.0,0.00031202]
[1773224773829,0.07196114,69482.0,69471.0,0.00031202]
[1773224774015,0.00116,69479.0,69471.0,0.00031202]
[1773224774793,0.00116,69479.0,69472.0,0.07197144]
[1773224775097,0.07196021,69483.0,69472.0,0.07197144]
[1773224775303,0.00116,69482.0,69472.0,0.07197144]
[1773224775739,0.07696021,69483.0,69472.0,0.07197144]
[1773224775944,0.00116,69481.0,69472.0,0.07197144]
[1773224776143,0.07696021,69483.0,69472.0,0.07197144]
[1773224776349,0.00116,69482.0,69472.0,0.07197144]
[1773224776694,0.00116,69481.0,69472.0,0.07197144]
[1773224777306,0.00116,69480.0,69472.0,0.07197144]
[1773224777589,0.00116,69480.0,69472.0,0.07297144]
[1773224777799,0.00116,69479.0,69472.0,0.07197144]
[1773224777997,0.005,69482.0,69472.0,0.07197144]
[1773224778152,0.00116,69479.0,69472.0,0.07197144]
[1773224778997,0.07696118,69482.0,69472.0,0.07197144]
[1773224779326,0.00116,69479.0,69472.0,0.07197144]
[1773224779518,0.005,69482.0,69472.0,0.07197144]
[1773224779747,0.00116,69479.0,69472.0,0.07197144]
[1773224780294,0.07695709,69486.0,69472.0,0.07197144]
[1773224780295,0.00116,69481.0,69472.0,0.07197144]
[1773224780492,0.005,69486.0,69472.0,0.07197144]
[1773224780714,0.00116,69485.0,69472.0,0.07197144]
[1773224781118,7.5e-05,69478.0,69472.0,0.07197144]